fUST/lending_fUST_20240823
["ID","MTS","AMOUNT","RATE_DAILY","PERIOD"]
[335646309,1724398265579,-150.112233,0.000173,2]
[335646311,1724398265588,-1000.0,0.00017321,2]
[335646313,1724398265598,-150.112233,0.000174,2]
[335646316,1724398265607,-466.20424886,0.0001748,2]
[335646318,1724398265617,-1416.0,0.00017499,2]
[335646320,1724398265627,-287.573,0.00017499,2]
[335646322,1724398265636,-15577.811,0.00017499,2]
[335646324,1724398265646,-3000.0,0.000175,2]
[335646345,1724398265836,-1500.0,0.000175,2]
[335646347,1724398265846,-3000.0,0.0001751,2]
[335646349,1724398265856,-264.59863978,0.00017514,2]
[335646351,1724398265866,-8264.15100469,0.00017514,2]
[335646353,1724398265875,-3398.685474,0.00017514,2]
[335646355,1724398265885,-259.495263,0.00017514,2]
[335646357,1724398265894,-3398.685474,0.00017514,2]
[335646359,1724398265904,-259.495263,0.00017514,2]
[335646360,1724398265915,-151.0,0.00017514,2]
[335646361,1724398265925,-5342.57696,0.00017514,2]
[335646362,1724398265936,-5342.57696,0.00017514,2]
[335646363,1724398265948,-500.0,0.00017516,2]
[335646364,1724398265959,-3000.0,0.0001752,2]
[335646365,1724398265970,-400.28236254,0.00017521,2]
[335646366,1724398265981,-500.35718944,0.00017521,2]
[335646367,1724398265991,-828.30448284,0.00017521,2]
[335646368,1724398266002,-526.82538614,0.00017521,2]
[335646369,1724398266011,-700.7448713,0.00017521,2]
[335646370,1724398266021,-3000.0,0.0001753,2]
[335646371,1724398266030,-15024.19500519,0.00017534,9]
[335646372,1724398266039,-500.0,0.00017534,2]
[335646373,1724398266049,-151.0,0.00017534,2]
[335646374,1724398266058,-500.0,0.00017534,2]
[335646375,1724398266067,-151.0,0.00017534,2]
[335646376,1724398266076,-151.0,0.00017534,2]
[335646377,1724398266090,-500.0,0.00017534,2]
[335646378,1724398266102,-500.0,0.00017534,2]
[335646379,1724398266112,-500.0,0.00017534,2]
[335646380,1724398266122,-500.0,0.00017534,2]
[335646381,1724398266131,-725.36,0.00017534,2]
[335646382,1724398266141,-502.52264785,0.00017534,2]
[335646383,1724398266150,-500.0,0.00017534,2]
[335646384,1724398266164,-562.91635285,0.00017534,2]
[335646385,1724398266173,-500.0,0.00017534,2]
[335646386,1724398266182,-500.0,0.00017534,2]
[335646387,1724398266192,-500.0,0.00017534,2]
[335646388,1724398266203,-500.0,0.00017534,2]
[335646389,1724398266212,-500.0,0.00017534,2]
[335646390,1724398266221,-594.98,0.00017534,2]
[335646391,1724398266231,-819.25,0.00017534,2]
[335646393,1724398266241,-500.0,0.00017534,2]
[335646394,1724398266251,-500.0,0.00017534,2]
[335646396,1724398266260,-1005.17,0.00017534,2]
[335646397,1724398266269,-500.0,0.00017534,2]
[335646399,1724398266279,-500.0,0.00017534,2]
[335646400,1724398266288,-500.0,0.00017534,2]
[335646402,1724398266298,-500.0,0.00017534,2]
[335646404,1724398266307,-500.0,0.00017534,2]
[335646406,1724398266317,-500.0,0.00017534,2]
[335646408,1724398266327,-1141.12,0.00017534,2]
[335646410,1724398266337,-500.0,0.00017534,2]
[335646412,1724398266347,-562.89,0.00017534,2]
[335646414,1724398266357,-500.0,0.00017534,2]
[335646416,1724398266366,-500.0,0.00017534,2]
[335646418,1724398266375,-500.0,0.00017534,2]
[335646420,1724398266385,-500.0,0.00017534,2]
[335646423,1724398266394,-500.0,0.00017534,2]
[335646425,1724398266404,-829.81,0.00017534,2]
[335646427,1724398266413,-500.0,0.00017534,2]
[335646429,1724398266423,-500.0,0.00017534,2]
[335646431,1724398266432,-500.0,0.00017534,2]
[335646433,1724398266441,-500.0,0.00017534,2]
[335646435,1724398266451,-500.0,0.00017534,2]
[335646437,1724398266461,-500.0,0.00017534,2]
[335646439,1724398266470,-528.89703073,0.00017534,2]
[335646441,1724398266480,-500.0,0.00017534,2]
[335646443,1724398266490,-500.0,0.00017534,2]
[335646445,1724398266499,-500.0,0.00017534,2]
[335646447,1724398266508,-500.0,0.00017534,2]
[335646449,1724398266518,-294.63107153,0.00017534,2]
[335646451,1724398266527,-500.0,0.00017534,2]
[335646453,1724398266537,-500.0,0.00017534,2]
[335646455,1724398266548,-500.0,0.00017534,2]
[335646457,1724398266557,-500.0,0.00017534,2]
[335646459,1724398266567,-500.0,0.00017534,2]
[335646461,1724398266576,-200.0,0.00017534,2]
[335646463,1724398266585,-738.27,0.00017534,2]
[335646465,1724398266595,-500.0,0.00017534,2]
[335646467,1724398266605,-618.26,0.00017534,2]
[335646469,1724398266614,-500.0,0.00017534,2]
[335646471,1724398266623,-1075.78,0.00017534,2]
[335646473,1724398266633,-500.0,0.00017534,2]
[335646475,1724398266643,-500.0,0.00017534,2]
[335646477,1724398266652,-500.0,0.00017534,2]
[335646479,1724398266662,-500.0,0.00017534,2]
[335646481,1724398266672,-794.11,0.00017534,2]
[335646483,1724398266682,-500.0,0.00017534,2]
[335646485,1724398266692,-541.47,0.00017534,2]
[335646487,1724398266701,-500.0,0.00017534,2]
[335646489,1724398266710,-500.0,0.00017534,2]
[335646491,1724398266719,-577.3,0.00017534,2]
[335646493,1724398266729,-500.0,0.00017534,2]
[335646495,1724398266738,-500.0,0.00017534,2]
[335646497,1724398266748,-500.0,0.00017534,2]
[335646499,1724398266757,-500.0,0.00017534,2]
[335646501,1724398266767,-500.0,0.00017534,2]
[335646503,1724398266776,-500.0,0.00017534,2]
[335646505,1724398266786,-500.0,0.00017534,2]
[335646507,1724398266795,-606.94,0.00017534,2]
[335646509,1724398266805,-500.0,0.00017534,2]
[335646511,1724398266815,-838.47,0.00017534,2]
[335646513,1724398266825,-500.0,0.00017534,2]
[335646515,1724398266834,-500.0,0.00017534,2]
[335646517,1724398266844,-500.0,0.00017534,2]
[335646519,1724398266853,-541.04,0.00017534,2]
[335646521,1724398266862,-500.0,0.00017534,2]
[335646523,1724398266872,-500.0,0.00017534,2]
[335646525,1724398266881,-500.0,0.00017534,2]
[335646527,1724398266891,-583.63,0.00017534,2]
[335646529,1724398266900,-500.0,0.00017534,2]
[335646531,1724398266909,-500.0,0.00017534,2]
[335646533,1724398266919,-957.87,0.00017534,2]
[335646535,1724398266928,-1011.34,0.00017534,2]
[335646537,1724398266939,-500.0,0.00017534,2]
[335646539,1724398266949,-687.63,0.00017534,2]
[335646541,1724398266958,-530.27,0.00017534,2]
[335646543,1724398266967,-500.0,0.00017534,2]
[335646545,1724398266977,-500.0,0.00017534,2]
[335646548,1724398266986,-500.0,0.00017534,2]
[335646550,1724398267007,-500.0,0.00017534,2]
[335646553,1724398267017,-500.0,0.00017534,2]
[335646555,1724398267027,-568.86,0.00017534,2]
[335646557,1724398267037,-822.04,0.00017534,2]
[335646559,1724398267048,-500.0,0.00017534,2]
[335646561,1724398267058,-500.0,0.00017534,2]
[335646563,1724398267068,-500.0,0.00017534,2]
[335646565,1724398267078,-658.88,0.00017534,2]
[335646567,1724398267087,-500.0,0.00017534,2]
[335646569,1724398267098,-500.0,0.00017534,2]
[335646571,1724398267107,-484.99131831,0.00017534,2]
[335646573,1724398267117,-500.0,0.00017534,2]
[335646575,1724398267127,-500.0,0.00017534,2]
[335646577,1724398267137,-500.0,0.00017534,2]
[335646579,1724398267147,-500.0,0.00017534,2]
[335646581,1724398267160,-715.59,0.00017534,2]
[335646584,1724398267170,-500.0,0.00017534,2]
[335646585,1724398267179,-500.0,0.00017534,2]
[335646588,1724398267189,-500.0,0.00017534,2]
[335646589,1724398267199,-500.0,0.00017534,2]
[335646592,1724398267209,-500.0,0.00017534,2]
[335646594,1724398267219,-654.15,0.00017534,2]
[335646595,1724398267229,-197.68456008,0.00017534,2]
[335646598,1724398267238,-500.0,0.00017534,2]
[335646600,1724398267248,-992.15,0.00017534,2]
[335646602,1724398267258,-482.16514732,0.00017534,2]
[335646604,1724398267268,-407.86386952,0.00017534,2]
[335646606,1724398267277,-500.0,0.00017534,2]
[335646608,1724398267287,-500.0,0.00017534,2]
[335646610,1724398267302,-500.0,0.00017534,2]
[335646612,1724398267312,-500.0,0.00017534,2]
[335646614,1724398267322,-500.0,0.00017534,2]
[335646616,1724398267332,-500.0,0.00017534,2]
[335646618,1724398267341,-500.0,0.00017534,2]
[335646620,1724398267351,-522.78,0.00017534,2]
[335646622,1724398267360,-500.0,0.00017534,2]
[335646624,1724398267370,-877.44,0.00017534,2]
[335646626,1724398267379,-500.0,0.00017534,2]
[335646628,1724398267389,-500.0,0.00017534,2]
[335646630,1724398267398,-695.74,0.00017534,2]
[335646632,1724398267407,-512.803335,0.00017534,2]
[335646634,1724398267417,-500.0,0.00017534,2]
[335646636,1724398267426,-500.0,0.00017534,2]
[335646638,1724398267436,-500.0,0.00017534,2]
[335646640,1724398267445,-500.0,0.00017534,2]
[335646642,1724398267455,-532.98,0.00017534,2]
[335646644,1724398267465,-500.0,0.00017534,2]
[335646646,1724398267475,-322.18688646,0.00017534,2]
[335646648,1724398267485,-500.0,0.00017534,2]
[335646650,1724398267494,-500.0,0.00017534,2]
[335646652,1724398267504,-500.0,0.00017534,2]
[335646654,1724398267514,-500.0,0.00017534,2]
[335646656,1724398267524,-500.0,0.00017534,2]
[335646658,1724398267534,-2524.74,0.00017534,2]
[335646660,1724398267544,-1179.78,0.00017534,2]
[335646662,1724398267556,-1314.97,0.00017534,2]
[335646664,1724398267566,-500.0,0.00017534,2]
[335646666,1724398267577,-2419.23,0.00017534,2]
[335646668,1724398267587,-510.76513721,0.00017534,2]
[335646670,1724398267597,-500.0,0.00017534,2]
[335646672,1724398267606,-500.0,0.00017534,2]
[335646674,1724398267616,-838.69,0.00017534,2]
[335646676,1724398267632,-500.0,0.00017534,2]
[335646679,1724398267643,-805.79,0.00017534,2]
[335646681,1724398267654,-500.0,0.00017534,2]
[335646683,1724398267665,-1547.97,0.00017534,2]
[335646685,1724398267675,-744.45,0.00017534,2]
[335646687,1724398267685,-500.0,0.00017534,2]
[335646689,1724398267695,-500.0,0.00017534,2]
[335646691,1724398267705,-1075.24,0.00017534,2]
[335646693,1724398267716,-756.53,0.00017534,2]
[335646695,1724398267726,-1385.68,0.00017534,2]
[335646697,1724398267737,-500.0,0.00017534,2]
[335646699,1724398267747,-500.0,0.00017534,2]
[335646701,1724398267757,-855.15,0.00017534,2]
[335646703,1724398267767,-500.0,0.00017534,2]
[335646705,1724398267777,-914.71,0.00017534,2]
[335646707,1724398267787,-503.35438258,0.00017534,2]
[335646709,1724398267799,-558.55,0.00017534,2]
[335646712,1724398267810,-619.34,0.00017534,2]
[335646714,1724398267821,-500.0,0.00017534,2]
[335646716,1724398267832,-1514.06,0.00017534,2]
[335646718,1724398267842,-500.0,0.00017534,2]
[335646720,1724398267851,-500.0,0.00017534,2]
[335646722,1724398267861,-500.0,0.00017534,2]
[335646724,1724398267871,-500.0,0.00017534,2]
[335646726,1724398267882,-513.66,0.00017534,2]
[335646728,1724398267892,-500.0,0.00017534,2]
[335646730,1724398267902,-1184.21,0.00017534,2]
[335646732,1724398267912,-878.73,0.00017534,2]
[335646734,1724398267921,-500.0,0.00017534,2]
[335646736,1724398267931,-500.0,0.00017534,2]
[335646738,1724398267941,-515.42,0.00017534,2]
[335646740,1724398267951,-500.0,0.00017534,2]
[335646742,1724398267962,-500.0,0.00017534,2]
[335646744,1724398267971,-500.0,0.00017534,2]
[335646746,1724398267982,-711.62,0.00017534,2]
[335646748,1724398267993,-500.0,0.00017534,2]
[335646750,1724398268002,-2135.65,0.00017534,2]
[335646752,1724398268012,-500.0,0.00017534,2]
[335646754,1724398268021,-1246.02,0.00017534,2]
[335646756,1724398268031,-500.0,0.00017534,2]
[335646758,1724398268041,-399.70554303,0.00017534,2]
[335646760,1724398268051,-500.0,0.00017534,2]
[335646762,1724398268061,-1687.47,0.00017534,2]
[335646764,1724398268072,-500.0,0.00017534,2]
[335646766,1724398268082,-735.36,0.00017534,2]
[335646768,1724398268092,-807.02,0.00017534,2]
[335646770,1724398268102,-613.43,0.00017534,2]
[335646772,1724398268112,-500.0,0.00017534,2]
[335646775,1724398268123,-1019.38,0.00017534,2]
[335646777,1724398268133,-500.0,0.00017534,2]
[335646779,1724398268143,-556.9,0.00017534,2]
[335646781,1724398268153,-500.0,0.00017534,2]
[335646783,1724398268168,-500.57,0.00017534,2]
[335646785,1724398268178,-500.0,0.00017534,2]
[335646787,1724398268188,-500.0,0.00017534,2]
[335646789,1724398268202,-3941.01,0.00017534,2]
[335646791,1724398268213,-500.0,0.00017534,2]
[335646793,1724398268224,-500.0,0.00017534,2]
[335646795,1724398268235,-328.70539643,0.00017534,2]
[335646797,1724398268246,-510.00000001,0.00017534,2]
[335646800,1724398268257,-500.0,0.00017534,2]
[335646802,1724398268267,-829.46,0.00017534,2]
[335646804,1724398268276,-526.76651344,0.00017534,2]
[335646806,1724398268286,-1186.27,0.00017534,2]
[335646807,1724398268296,-500.0,0.00017534,2]
[335646810,1724398268308,-550.83,0.00017534,2]
[335646812,1724398268318,-500.0,0.00017534,2]
[335646814,1724398268328,-500.0,0.00017534,2]
[335646816,1724398268339,-518.36,0.00017534,2]
[335646818,1724398268349,-500.0,0.00017534,2]
[335646820,1724398268359,-768.86,0.00017534,2]
[335646822,1724398268369,-1390.21,0.00017534,2]
[335646824,1724398268381,-1063.26,0.00017534,2]
[335646826,1724398268392,-500.0,0.00017534,2]
[335646828,1724398268403,-500.0,0.00017534,2]
[335646831,1724398268414,-751.58,0.00017534,2]
[335646833,1724398268424,-695.85,0.00017534,2]
[335646835,1724398268434,-1507.16,0.00017534,2]
[335646837,1724398268444,-500.0,0.00017534,2]
[335646839,1724398268455,-531.56,0.00017534,2]
[335646841,1724398268465,-500.0,0.00017534,2]
[335646843,1724398268476,-934.73,0.00017534,2]
[335646845,1724398268485,-500.0,0.00017534,2]
[335646847,1724398268495,-1196.57,0.00017534,2]
[335646849,1724398268505,-500.0,0.00017534,2]
[335646852,1724398268516,-500.0,0.00017534,2]
[335646854,1724398268528,-500.0,0.00017534,2]
[335646856,1724398268537,-500.0,0.00017534,2]
[335646858,1724398268548,-500.0,0.00017534,2]
[335646860,1724398268558,-2371.0,0.00017534,2]
[335646862,1724398268569,-760.53,0.00017534,2]
[335646864,1724398268580,-1042.45,0.00017534,2]
[335646866,1724398268590,-1704.03,0.00017534,2]
[335646868,1724398268600,-500.0,0.00017534,2]
[335646870,1724398268609,-342.49252034,0.00017534,2]
[335646873,1724398268619,-500.0,0.00017534,2]
[335646875,1724398268629,-1131.39,0.00017534,2]
[335646877,1724398268639,-500.0,0.00017534,2]
[335646879,1724398268648,-1160.44,0.00017534,2]
[335646881,1724398268658,-500.0,0.00017534,2]
[335646882,1724398268667,-877.22,0.00017534,2]
[335646885,1724398268678,-500.0,0.00017534,2]
[335646886,1724398268688,-1974.73,0.00017534,2]
[335646888,1724398268697,-500.0,0.00017534,2]
[335646891,1724398268707,-1373.05,0.00017534,2]
[335646893,1724398268717,-500.0,0.00017534,2]
[335646895,1724398268726,-500.0,0.00017534,2]
[335646897,1724398268735,-505.50649471,0.00017534,2]
[335646899,1724398268745,-1579.0,0.00017534,2]
[335646901,1724398268754,-960.02,0.00017534,2]
[335646924,1724398268965,-5260.059224,0.00017534,2]
[335646926,1724398268975,-500.0,0.00017534,2]
[335646928,1724398268985,-500.0,0.00017534,2]
[335646930,1724398268995,-5260.059224,0.00017534,2]
[335646932,1724398269004,-500.0,0.00017534,2]
[335646934,1724398269013,-500.0,0.00017534,2]
[335646936,1724398269024,-607.01,0.00017534,2]
[335646938,1724398269034,-217.264758,0.00017534,2]
[335646940,1724398269044,-159.107045,0.00017534,2]
[335646942,1724398269053,-325.856587,0.00017534,2]
[335646944,1724398269062,-217.264758,0.00017534,2]
[335646946,1724398269072,-159.107045,0.00017534,2]
[335646949,1724398269082,-1164.01,0.00017534,2]
[335646951,1724398269091,-325.856587,0.00017534,2]
[335646952,1724398269101,-500.0,0.00017534,2]
[335646954,1724398269110,-810.46,0.00017534,2]
[335646956,1724398269119,-500.0,0.00017534,2]
[335646958,1724398269128,-818.13,0.00017534,2]
[335646960,1724398269138,-500.0,0.00017534,2]
[335646962,1724398269147,-467.65628243,0.00017534,2]
[335646964,1724398269158,-896.12,0.00017534,2]
[335646966,1724398269168,-872.75,0.00017534,2]
[335646968,1724398269178,-500.0,0.00017534,2]
[335646970,1724398269187,-695.83,0.00017534,2]
[335646972,1724398269196,-500.0,0.00017534,2]
[335646974,1724398269206,-500.0,0.00017534,2]
[335646976,1724398269216,-871.08,0.00017534,2]
[335646978,1724398269225,-837.67,0.00017534,2]
[335646980,1724398269236,-500.0,0.00017534,2]
[335646982,1724398269246,-500.0,0.00017534,2]
[335646984,1724398269255,-500.0,0.00017534,2]
[335646986,1724398269264,-825.29,0.00017534,2]
[335646988,1724398269273,-887.32,0.00017534,2]
[335646990,1724398269282,-1054.55,0.00017534,2]
[335646993,1724398269292,-611.671242,0.00017534,2]
[335646995,1724398269303,-908.36,0.00017534,2]
[335646997,1724398269313,-611.671242,0.00017534,2]
[335646999,1724398269322,-1232.73,0.00017534,2]
[335647001,1724398269332,-784.51,0.00017534,2]
[335647003,1724398269341,-500.0,0.00017534,2]
[335647005,1724398269351,-500.0,0.00017534,2]
[335647007,1724398269361,-500.0,0.00017534,2]
[335647009,1724398269370,-296.58222,0.00017534,2]
[335647011,1724398269380,-1221.69,0.00017534,2]
[335647013,1724398269390,-500.0,0.00017534,2]
[335647015,1724398269400,-723.04,0.00017534,2]
[335647017,1724398269409,-296.58222,0.00017534,2]
[335647019,1724398269418,-500.0,0.00017534,2]
[335647021,1724398269428,-1070.93,0.00017534,2]
[335647023,1724398269438,-682.79,0.00017534,2]
[335647025,1724398269448,-540.64,0.00017534,2]
[335647027,1724398269458,-497.90517348,0.00017534,2]
[335647028,1724398269468,-1487.4,0.00017534,2]
[335647029,1724398269477,-811.12,0.00017534,2]
[335647030,1724398269487,-4026.58,0.00017534,2]
[335647031,1724398269496,-1043.33,0.00017534,2]
[335647032,1724398269505,-650.87,0.00017534,2]
[335647033,1724398269515,-500.0,0.00017534,2]
[335647034,1724398269525,-500.0,0.00017534,2]
[335647035,1724398269535,-500.0,0.00017534,2]
[335647036,1724398269545,-500.0,0.00017534,2]
[335647037,1724398269557,-500.0,0.00017534,2]
[335647038,1724398269566,-500.0,0.00017534,2]
[335647039,1724398269576,-500.0,0.00017534,2]
[335647040,1724398269586,-500.0,0.00017534,2]
[335647041,1724398269595,-521.07,0.00017534,2]
[335647043,1724398269604,-920.93,0.00017534,2]
[335647045,1724398269615,-721.57,0.00017534,2]
[335647047,1724398269625,-645.83,0.00017534,2]
[335647049,1724398269635,-719.91,0.00017534,2]
[335647051,1724398269646,-650.29,0.00017534,2]
[335647053,1724398269657,-1673.02,0.00017534,2]
[335647055,1724398269668,-1947.465429,0.00017534,2]
[335647057,1724398269678,-500.0,0.00017534,2]
[335647059,1724398269688,-1908.17,0.00017534,2]
[335647061,1724398269698,-531.53,0.00017534,2]
[335647063,1724398269708,-500.0,0.00017534,2]
[335647066,1724398269719,-500.0,0.00017534,2]
[335647068,1724398269729,-938.17,0.00017534,2]
[335647070,1724398269740,-1947.465429,0.00017534,2]
[335647072,1724398269750,-500.0,0.00017534,2]
[335647074,1724398269761,-717.66,0.00017534,2]
[335647076,1724398269771,-230.137497,0.00017534,2]
[335647078,1724398269783,-694.74,0.00017534,2]
[335647081,1724398269793,-1069.37,0.00017534,2]
[335647083,1724398269805,-2360.17,0.00017534,2]
[335647085,1724398269815,-769.7,0.00017534,2]
[335647087,1724398269825,-512.68,0.00017534,2]
[335647089,1724398269835,-599.6,0.00017534,2]
[335647091,1724398269845,-500.0,0.00017534,2]
[335647093,1724398269855,-500.0,0.00017534,2]
[335647095,1724398269867,-1263.49,0.00017534,2]
[335647097,1724398269877,-833.532863,0.00017534,2]
[335647099,1724398269886,-1084.53,0.00017534,2]
[335647101,1724398269895,-981.82,0.00017534,2]
[335647103,1724398269904,-659.2,0.00017534,2]
[335647106,1724398269915,-833.532863,0.00017534,2]
[335647108,1724398269925,-500.0,0.00017534,2]
[335647109,1724398269934,-840.72,0.00017534,2]
[335647111,1724398269944,-500.0,0.00017534,2]
[335647113,1724398269953,-695.92,0.00017534,2]
[335647115,1724398269963,-1034.21,0.00017534,2]
[335647117,1724398269973,-749.07,0.00017534,2]
[335647119,1724398269983,-2109.2981,0.00017534,2]
[335647121,1724398269994,-748.28,0.00017534,2]
[335647123,1724398270004,-1348.81,0.00017534,2]
[335647126,1724398270014,-500.0,0.00017534,2]
[335647128,1724398270023,-500.0,0.00017534,2]
[335647130,1724398270033,-6144.54,0.00017534,2]
[335647132,1724398270043,-617.4,0.00017534,2]
[335647134,1724398270055,-1432.16,0.00017534,2]
[335647136,1724398270064,-838.94,0.00017534,2]
[335647138,1724398270075,-2109.2981,0.00017534,2]
[335647140,1724398270085,-500.0,0.00017534,2]
[335647142,1724398270094,-1850.66,0.00017534,2]
[335647144,1724398270104,-500.0,0.00017534,2]
[335647146,1724398270113,-6340.462727,0.00017534,2]
[335647148,1724398270123,-785.02,0.00017534,2]
[335647150,1724398270133,-2149.7,0.00017534,2]
[335647152,1724398270143,-1438.75,0.00017534,2]
[335647154,1724398270154,-1716.86,0.00017534,2]
[335647156,1724398270165,-6340.462727,0.00017534,2]
[335647158,1724398270175,-500.0,0.00017534,2]
[335647161,1724398270185,-4812.05,0.00017534,2]
[335647163,1724398270195,-805.33,0.00017534,2]
[335647165,1724398270206,-151.0,0.00017534,2]
[335647167,1724398270215,-502.72467054,0.00017534,2]
[335647169,1724398270225,-500.0,0.00017534,2]
[335647171,1724398270238,-1512.69,0.00017534,2]
[335647173,1724398270250,-598.77,0.00017534,2]
[335647175,1724398270262,-1036.34,0.00017534,2]
[335647177,1724398270272,-3928.47,0.00017534,2]
[335647179,1724398270282,-631.45,0.00017534,2]
[335647181,1724398270292,-500.0,0.00017534,2]
[335647183,1724398270302,-954.59,0.00017534,2]
[335647185,1724398270312,-719.533358,0.00017534,2]
[335647187,1724398270321,-867.9,0.00017534,2]
[335647189,1724398270330,-1410.98,0.00017534,2]
[335647191,1724398270339,-500.0,0.00017534,2]
[335647193,1724398270348,-719.533358,0.00017534,2]
[335647195,1724398270358,-500.0,0.00017534,2]
[335647197,1724398270367,-1029.93,0.00017534,2]
[335647199,1724398270377,-1157.84,0.00017534,2]
[335647201,1724398270386,-151.0,0.00017534,2]
[335647203,1724398270395,-519.67,0.00017534,2]
[335647205,1724398270404,-151.0,0.00017534,2]
[335647207,1724398270415,-500.0,0.00017534,2]
[335647209,1724398270424,-151.0,0.00017534,2]
[335647211,1724398270434,-1821.98,0.00017534,2]
[335647213,1724398270443,-500.0,0.00017534,2]
[335647214,1724398270453,-1574.16,0.00017534,2]
[335647216,1724398270462,-500.0,0.00017534,2]
[335647218,1724398270472,-1715.07,0.00017534,2]
[335647220,1724398270481,-2456.63,0.00017534,2]
[335647222,1724398270491,-4106.82,0.00017534,2]
[335647224,1724398270500,-1090.64,0.00017534,2]
[335647226,1724398270510,-2035.43,0.00017534,2]
[335647228,1724398270520,-668.25,0.00017534,2]
[335647230,1724398270529,-1507.26,0.00017534,2]
[335647232,1724398270539,-2096.18,0.00017534,2]
[335647234,1724398270551,-2942.887122,0.00017534,2]
[335647236,1724398270562,-500.0,0.00017534,2]
[335647238,1724398270572,-746.99,0.00017534,2]
[335647240,1724398270582,-180.827405,0.00017534,2]
[335647242,1724398270592,-1234.82,0.00017534,2]
[335647244,1724398270602,-151.0,0.00017534,2]
[335647246,1724398270612,-500.0,0.00017534,2]
[335647248,1724398270621,-865.49,0.00017534,2]
[335647250,1724398270631,-2942.887122,0.00017534,2]
[335647252,1724398270640,-180.827405,0.00017534,2]
[335647254,1724398270650,-550.03,0.00017534,2]
[335647256,1724398270661,-500.0,0.00017534,2]
[335647258,1724398270671,-2947.589488,0.00017534,2]
[335647260,1724398270681,-500.0,0.00017534,2]
[335647262,1724398270690,-2947.589488,0.00017534,2]
[335647264,1724398270700,-1174.537754,0.00017534,2]
[335647266,1724398270709,-500.0,0.00017534,2]
[335647268,1724398270719,-1356.67,0.00017534,2]
[335647270,1724398270729,-500.0,0.00017534,2]
[335647272,1724398270739,-1174.537754,0.00017534,2]
[335647274,1724398270749,-741.3,0.00017534,2]
[335647277,1724398270761,-1309.52,0.00017534,2]
[335647279,1724398270771,-613.34,0.00017534,2]
[335647280,1724398270781,-3108.81,0.00017534,2]
[335647283,1724398270791,-780.3,0.00017534,2]
[335647285,1724398270801,-4914.91,0.00017534,2]
[335647286,1724398270810,-1032.28,0.00017534,2]
[335647289,1724398270821,-601.88,0.00017534,2]
[335647291,1724398270830,-661.63,0.00017534,2]
[335647293,1724398270840,-500.0,0.00017534,2]
[335647295,1724398270851,-500.0,0.00017534,2]
[335647297,1724398270860,-1145.88,0.00017534,2]
[335647299,1724398270871,-3057.65,0.00017534,2]
[335647301,1724398270880,-780.59,0.00017534,2]
[335647303,1724398270890,-1536.07,0.00017534,2]
[335647305,1724398270900,-500.0,0.00017534,2]
[335647307,1724398270909,-500.0,0.00017534,2]
[335647309,1724398270919,-500.0,0.00017534,2]
[335647311,1724398270928,-151.0,0.00017534,2]
[335647313,1724398270937,-929.75,0.00017534,2]
[335647315,1724398270946,-500.0,0.00017534,2]